Cogmind - Beta 14 @@@ ROGUE MODE // 2024.09.26 @ 18:48:54 Player: Maienne du Crabe Result: Destroyed by H-66 Slayer with Heavy Assault Rifle Performance ------------- Evolutions (4) 2000 Regions Visited (7) 1400 Robots Destroyed (68) 340 Value Destroyed (1571) 1571 Prototype IDs (27) 540 Alien Tech Used (0) 0 Bonus (307) 307 TOTAL SCORE: 6158 Bonus ------- Follower Combat Kills 7 Aligned with FarCom 300 Cogmind --------- Core Integrity 0/850 Matter 231/300 Energy 100/100 System Corruption 0% Temperature Cool (0) Movement Core (50) Location -6/Factory Parts ------- > --- POWER (1) -------- (None) > --- PROPULSION (5) --- (None) > --- UTILITY (7) ------ Visual Processing Unit Improved Targeting Computer Core Analyzer Hacking Suite > --- WEAPON (2) ------- (None) > --- INVENTORY (5) ---- Coolant Injector Compact Battery (200) Seismic Detector Improved Shield Generator Recalibrator Peak State ------------ > --- POWER ------------ (None) > --- PROPULSION ------- Light Treads Improved Medium Treads Improved Medium Treads Compact Wheel Cooled Airjet > --- UTILITY ---------- Advanced Weight Redist. System Visual Processing Unit Improved Targeting Computer Advanced Targeting Computer Core Analyzer Hacking Suite Drone Bay > --- WEAPON ----------- Power Maul Power Maul > --- INVENTORY -------- Compact Battery Seismic Detector Core Shielding Shield Generator Recalibrator [Rating: 48] Favorites ----------- Power Ion Engine Engine Ion Engine Power Core Light Nuclear Core Propulsion Light Treads Treads Light Treads Leg Improved Titanium Leg Wheel Wheel Hover Unit Cooled Airjet Flight Unit Improved Flight Unit Utility Advanced Targeting Computer Device Advanced Weight Redist. System Storage Large Storage Unit Processor Advanced Targeting Computer Hackware Hacking Suite Protection Core Shielding Weapon Advanced Beam Rifle Energy Gun Advanced Beam Rifle Ballistic Gun Assault Rifle Launcher Grenade Launcher Special Weapon Field Lobotomy Kit Impact Weapon Power Maul Special Melee Weapon Datajack Build | -11 -10 -10 -10 -9 -8 -7 -6 ------- Run | Yrd Mat Min Exi Min Mat Fac Fac Slots Evolved 8 | . . . . . 4 2 2 Power . | . . . . . . . . Propulsion 3 | . . . . . 2 . 1 Utility 5 | . . . . . 2 2 1 Weapon . | . . . . . . . . Parts Attached 84 | 7 5 2 2 2 39 17 10 Power 11 | 1 2 . . . 7 . 1 Engine 6 | 1 2 . . . 2 . 1 Core 5 | . . . . . 5 . . Reactor . | . . . . . . . . Propulsion 27 | 2 1 . . . 13 8 3 Treads 16 | 2 1 . . . 9 2 2 Leg 3 | . . . . . . 3 . Wheel 3 | . . . . . . 2 1 Hover 4 | . . . . . 3 1 . Flight 1 | . . . . . 1 . . Utility 26 | 2 1 1 1 1 10 4 6 Device 13 | 1 . 1 1 . 4 2 4 Storage 2 | 1 1 . . . . . . Processor 6 | . . . . 1 3 1 1 Hackware 1 | . . . . . 1 . . Protection 4 | . . . . . 2 1 1 Artifact . | . . . . . . . . Weapon 20 | 2 1 1 1 1 9 5 . Energy Gun 10 | . . 1 . . 7 2 . Energy Cannon . | . . . . . . . . Ballistic Gun 3 | 2 . . . 1 . . . Ballistic Cannon . | . . . . . . . . Launcher 1 | . 1 . . . . . . Special Weapon 2 | . . . 1 . 1 . . Impact Weapon 3 | . . . . . . 3 . Slashing Weapon . | . . . . . . . . Piercing Weapon . | . . . . . . . . Special Melee Weapon 1 | . . . . . 1 . . Unidentified Prototypes 2 | . . . . . 1 1 . Parts Lost 36 | . . 1 . 1 13 9 12 Power 4 | . . . . . 3 . 1 Propulsion 17 | . . . . . 6 6 5 Utility 11 | . . . . 1 3 2 5 Weapon 4 | . . 1 . . 1 1 1 Highest Loss Streak 7 | . . 1 . 1 5 2 7 To Critical Strikes . | . . . . . . . . Average Slot Usage (%) 87 | . 100 97 100 97 95 68 65 Engine 5 | . 14 14 14 14 2 . . Core 1 | . . . . . 5 . . Treads 20 | . 28 28 28 28 26 6 7 Hover 2 | . . . . . 4 3 2 Device 8 | . 14 14 14 7 4 7 9 Storage 7 | . 14 14 14 14 8 . . Processor 11 | . . . . 4 14 21 23 Hackware 4 | . . . . . 6 7 6 Protection 2 | . . . . . 1 7 . Energy Gun 7 | . . 11 14 14 15 1 . Ballistic Gun 5 | . 17 14 7 4 1 . . Launcher 1 | . 10 . . . . . . Special Weapon 1 | . . . 6 8 . . . Impact Weapon 2 | . . . . . . 7 10 Peak Build Rating 48 | 9 10 10 20 20 35 30 48 Average Rating 20 | 5 9 9 13 15 26 22 31 On Entrance 13 | . 9 10 9 20 10 21 29 Naked Turns . | . . . . . . . . Heaviest Build 37 | 12 31 30 36 36 37 8 13 Greatest Support 80 | 40 40 40 40 40 80 40 30 Greatest Overweight (x) 4 | . . . . . 4 2 1 Average Overweight (x) . | . . . . . . . . Largest Inventory Capacity 15 | 8 15 15 15 15 15 5 5 Average Capacity 10 | 7 10 15 15 15 14 5 5 Most Carried 15 | 6 15 15 15 15 15 5 5 Average Carried 10 | 4 9 14 14 14 13 4 4 Final Capacity 15 | 8 15 15 15 15 5 5 5 Final Carried 15 | 6 15 14 15 15 5 5 5 Class Distribution -------------------- 62% | Mutant 23% | Scavenger-Mutant 4% | Scavenger-Skirmisher 3% | Skirmisher Dominant Class ---------------- Mutant | -10/Materials Mutant | -10/Mines Mutant | -10/Exiles Skirmisher | -9/Mines Scavenger-Mutant | -8/Materials Mutant | -7/Factory Mutant | -6/Factory Resources | -11 -10 -10 -10 -9 -8 -7 -6 ----------- Run | Yrd Mat Min Exi Min Mat Fac Fac Matter Collected 1218 | 302 244 83 . 105 328 136 20 Remotely . | . . . . . . . . Salvage Created 2292 | 125 310 83 . 40 1370 364 . Parts 118 | 4 41 5 . 3 54 11 . Haulers Intercepted 3 | . 1 . . . 2 . . Recyclers Shooed . | . . . . . . . . Parts Field Recycled . | . . . . . . . . Retrieved Matter . | . . . . . . . . Parts Self-Destructed . | . . . . . . . . Prevented . | . . . . . . . . Kills | -11 -10 -10 -10 -9 -8 -7 -6 ------- Run | Yrd Mat Min Exi Min Mat Fac Fac Combat Hostiles Destroyed 41 | . 10 2 . 2 25 2 . Guns 34 | . 8 1 . 2 22 1 . AOE 5 | . 2 1 . . 2 . . Classes Destroyed 12 | 3 6 . . . 1 2 . Worker 5 | 2 1 . . . . 2 . Builder 7 | . 1 . . . 1 5 . Tunneler 2 | 1 . . . . . 1 . Hauler 3 | . 1 . . . 2 . . Recycler 5 | 1 . . . . 2 2 . Operator 2 | . 1 . . . 1 . . Watcher 3 | . 2 . . . 1 . . Swarmer 15 | . 6 . . 2 7 . . Grunt 23 | . 4 2 . . 17 . . Sentry 1 | . . . . . . 1 . Programmer 1 | . . . . . . 1 . Heavy 1 | . . . . . 1 . . Best Kill Streak 5 | 2 4 1 . 2 5 4 . Combat Bots Only 4 | . 4 1 . 2 4 1 . Max Kills in Single Turn 3 | 1 3 1 . 1 2 3 . Gunslinging . | . . . . . . . . Exploded 2 | . 2 1 . . 2 . . Melee . | . . . . . . . . Uniques/NPCs Destroyed . | . . . . . . . . Combat | -11 -10 -10 -10 -9 -8 -7 -6 -------- Run | Yrd Mat Min Exi Min Mat Fac Fac Hostile Shots Fired 585 | . 49 13 . 28 218 120 157 Missed 209 | . 12 3 . 11 60 66 57 Damage Taken 5674 | . 390 195 . 135 2303 896 1755 Core 1586 | . 86 52 . 40 294 264 850 Absorbed by Shields 5 | . . . . . . . 5 Redirected to Shielding 51 | . . . . . . 45 6 Core Remaining (%) 59 | 100 . . . 28 46 62 . Volleys Fired 222 | 8 56 11 . 13 112 22 . Largest 2 | 2 2 2 . 2 2 1 . Hottest 122 | 40 40 50 . 40 122 61 . Shots Fired 334 | 16 68 12 . 17 199 22 . Gun 323 | 16 66 11 . 12 196 22 . Cannon . | . . . . . . . . Launcher 3 | . 2 1 . . . . . Special 8 | . . . . 5 3 . . Kinetic 115 | 16 66 11 . . 22 . . Thermal 175 | . . . . . 161 14 . Explosive 3 | . 2 1 . . . . . Electromagnetic 36 | . . . . 12 16 8 . Robot Hit Streak 21 | 6 7 4 . 2 21 11 . Robot Miss Streak 3 | 2 3 1 . 3 3 2 . Penetration Max . | . . . . . . . . Secondary Targets 2 | . . . . . 2 . . Max Gunslinging Chain 1 | . . . . . 1 . . Shots Hit Robots 228 | 10 39 10 . 8 128 33 . Core Hits 99 | 5 26 4 . 2 55 7 . Critical Kills . | . . . . . . . . Critical Parts Destroyed . | . . . . . . . . Critical Strikes 10 | . . . . . 8 2 . Burn 10 | . . . . . 8 2 . Melee Attacks 39 | . . . . . . 29 10 Impact 39 | . . . . . . 29 10 Slashing . | . . . . . . . . Piercing . | . . . . . . . . Sneak Attacks 8 | . . . . . . 8 . Combat Hostiles . | . . . . . . . . Follow-up Attacks . | . . . . . . . . Damage Inflicted 4833 | 109 601 187 . 32 2467 1415 22 Guns 3324 | 109 472 116 . 32 2334 261 . Cannons . | . . . . . . . . Explosions 572 | . 129 67 . . 118 258 . Melee 896 | . . . . . . 896 . Ramming 41 | . . 4 . . 15 . 22 Kinetic 822 | 109 472 116 . . 125 . . Thermal 2676 | . . . . . 2178 498 . Explosive 196 | . 129 67 . . . . . Electromagnetic 202 | . . . . 32 149 21 . Impact 896 | . . . . . . 896 . Slashing . | . . . . . . . . Piercing . | . . . . . . . . Highest Corruption 3 | . . . . . 1 3 . Average Corruption 2 | . . . . . 1 2 . Corruption Purged . | . . . . . . . . Corruption Blocked . | . . . . . . . . Effects 6 | . . . . . . 6 . Message Errors 3 | . . . . . . 3 . Matter Fused 2 | . . . . . . 2 . Data Loss (minor) 1 | . . . . . . 1 . Overload Shots . | . . . . . . . . Overflow Damage 594 | . . 21 . . 16 557 . Projectiles . | . . . . . . . . Explosions 301 | . . 21 . . 16 264 . Melee 293 | . . . . . . 293 . Knockbacks 5 | . . . . . . 5 . Impact 5 | . . . . . . 5 . Kinetic . | . . . . . . . . Secondary . | . . . . . . . . Self-Inflicted Damage 294 | . . 39 . . 56 188 11 Shots 4 | . . 1 . . 1 2 . Rammed 5 | . . 1 . . 2 . 2 Targets Rammed 5 | . . 1 . . 2 . 2 Kicked . | . . . . . . . . Crushed . | . . . . . . . . Highest Temperature 498 | . 18 5 . . 498 . 17 Average Temperature 114 | . 9 5 . . 118 . 9 Received Heat Transfer 1968 | . 150 90 . . 1062 105 561 Effects 3 | . . . . . 3 . . Interference 1 | . . . . . 1 . . Matter Decay 1 | . . . . . 1 . . Short Circuit 1 | . . . . . 1 . . Siege Activations . | . . . . . . . . Robots Corrupted 5 | . . . . . . 5 . Combat Hostiles 1 | . . . . . . 1 . Parts Fried 9 | . . . . . . 9 . Impact Corruptions 15 | . . . . . . 15 . Robots Melted 1 | . . . . . 1 . . Combat Hostiles 1 | . . . . . 1 . . Parts Melted 8 | . . . . . 7 1 . Heat Transferred 5245 | . . . . . 4503 742 . Parts Sabotaged . | . . . . . . . . Parts Stolen . | . . . . . . . . Parts Stripped . | . . . . . . . . Power Chain Reactions 1 | . . . . . 1 . . Alert | -11 -10 -10 -10 -9 -8 -7 -6 ------- Run | Yrd Mat Min Exi Min Mat Fac Fac Peak Influence 475 | 20 250 86 . 50 475 332 206 Initial 215 | . 13 21 . . 19 215 14 Average 117 | 4 110 82 . 18 124 171 56 Maximum Alert Level 2 | . 1 . . . 2 1 1 Low Security (%) 79 | 100 83 100 . 100 74 68 98 Level 1 18 | . 16 . . . 20 31 1 Level 2 1 | . . . . . 4 . . Level 3 . | . . . . . . . . Level 4 . | . . . . . . . . Level 5 . | . . . . . . . . High Security . | . . . . . . . . Max Security . | . . . . . . . . Squads Dispatched 18 | . 2 . . . 8 6 2 Investigation 6 | . . . . . 3 3 . Extermination 1 | . . . . . . 1 . Reinforcement 11 | . 2 . . . 5 2 2 Assault . | . . . . . . . . Garrison . | . . . . . . . . Intercept . | . . . . . . . . Searches Triggered . | . . . . . . . . Construction Impeded 1 | . . . . . . 1 . Haulers Reinforced . | . . . . . . . . Active Scanning Responses . | . . . . . . . . Cargo Convoy Interrupts . | . . . . . . . . Stealth | -11 -10 -10 -10 -9 -8 -7 -6 --------- Run | Yrd Mat Min Exi Min Mat Fac Fac Distress Signals 9 | . 1 . . . 7 1 . Communications Jammed . | . . . . . . . . Distress Signals . | . . . . . . . . Times Spotted 118 | . 20 1 . 7 52 15 23 Peak Tracking Total 12 | . 5 1 . 4 12 6 10 Tactical Retreats 15 | . 2 . . . 5 5 3 Traps | -11 -10 -10 -10 -9 -8 -7 -6 ------- Run | Yrd Mat Min Exi Min Mat Fac Fac Traps Triggered 5 | . 1 . . . 1 3 . Indirectly . | . . . . . . . . Trap Hack Attempts . | . . . . . . . . Triggered . | . . . . . . . . Disarmed . | . . . . . . . . Reprogrammed . | . . . . . . . . Reused . | . . . . . . . . Traps Extracted . | . . . . . . . . Installed . | . . . . . . . . Triggered . | . . . . . . . . Machines | -11 -10 -10 -10 -9 -8 -7 -6 ---------- Run | Yrd Mat Min Exi Min Mat Fac Fac Machines Disabled 4 | . . . . . 2 2 . Max in Single Turn 2 | . . . . . 1 2 . Machines Repaired . | . . . . . . . . Machines Dismantled . | . . . . . . . . Machines Sabotaged . | . . . . . . . . Overloaded Fab Kills . | . . . . . . . . Hacking | -11 -10 -10 -10 -9 -8 -7 -6 --------- Run | Yrd Mat Min Exi Min Mat Fac Fac Machines Accessed 17 | . 5 . 1 . 4 7 . Terminals 10 | . 5 . . . 2 3 . Fabricators 1 | . . . . . . 1 . Repair Stations . | . . . . . . . . Recycling Units 2 | . . . . . 1 1 . Scanalyzers 2 | . . . . . 1 1 . Garrison Access 1 | . . . . . . 1 . Total Hacks 49 | . 17 . 1 . 15 16 . Successful 29 | . 10 . 1 . 9 9 . Failed 20 | . 7 . . . 6 7 . Catastrophic 3 | . 1 . . . 1 1 . Database Lockouts . | . . . . . . . . Manual 14 | . 3 . 1 . 5 5 . Terminals 31 | . 17 . . . 5 9 . Fabricators 2 | . . . . . . 2 . Repair Stations . | . . . . . . . . Recycling Units 4 | . . . . . 3 1 . Scanalyzers 9 | . . . . . 7 2 . Garrison Access 2 | . . . . . . 2 . Terminal Hacks 16 | . 9 . 1 . 2 4 . Record 1 | . . . . . . 1 . Prototype ID Bank 1 | . 1 . . . . . . Branch Access Points 4 | . 2 . . . 1 1 . Emergency Access Points 1 | . 1 . . . . . . Locate Traps 2 | . 2 . . . . . . Registered Components 1 | . 1 . . . . . . Zone Layout 5 | . 2 . . . 1 2 . Derelict Proto ID Bank 1 | . . . 1 . . . . Fabricator Hacks 2 | . . . . . . 2 . Load Schematic 1 | . . . . . . 1 . Build 1 | . . . . . . 1 . Repair Station Hacks . | . . . . . . . . Recycling Unit Hacks 2 | . . . . . 1 1 . Report Inventory 1 | . . . . . 1 . . Retrieve Components 1 | . . . . . . 1 . Scanalyzer 8 | . . . . . 6 2 . Insert Component 4 | . . . . . 3 1 . Analyze 4 | . . . . . 3 1 . Garrison Access Hacks . | . . . . . . . . Unauthorized Hacks 1 | . 1 . . . . . . Terminals 1 | . 1 . . . . . . Botnet 1 | . 1 . . . . . . Fabricators . | . . . . . . . . Repair Stations . | . . . . . . . . Recycling Units . | . . . . . . . . Scanalyzers . | . . . . . . . . Garrison Access . | . . . . . . . . Data Cores Recovered . | . . . . . . . . Used . | . . . . . . . . Hacking Detections 15 | . 5 . . . 4 6 . Full Trace Events 7 | . 1 . . . 3 3 . Feedback Events 1 | . . . . . . 1 . Corruption 1 | . . . . . . 1 . Feedback Blocked . | . . . . . . . . Robot Schematics Acquired . | . . . . . . . . Robots Built . | . . . . . . . . Authchips . | . . . . . . . . Time . | . . . . . . . . Total Robot Build Rating . | . . . . . . . . Part Schematics Acquired 3 | . . . . . 2 1 . Parts Built 1 | . . . . . . 1 . Authchips . | . . . . . . . . Time 49 | . . . . . . 49 . Total Part Build Rating 2 | . . . . . . 2 . Parts Repaired . | . . . . . . . . Time . | . . . . . . . . Parts Recycled . | . . . . . . . . Recycled Matter . | . . . . . . . . Retrieved Matter . | . . . . . . . . Retrieved Components 6 | . . . . . . 6 . Parts Scanalyzed 3 | . . . . . 2 1 . Part Schematics Acquired 3 | . . . . . 2 1 . Parts Damaged . | . . . . . . . . Bothacking | -11 -10 -10 -10 -9 -8 -7 -6 ------------ Run | Yrd Mat Min Exi Min Mat Fac Fac Used RIF Installer . | . . . . . . . . Robots Hacked . | . . . . . . . . Non-combat . | . . . . . . . . Combat . | . . . . . . . . Robot Hacks Applied . | . . . . . . . . Relay Couplers Released . | . . . . . . . . Fabnet Peak Effective % . | . . . . . . . . Robots Rewired . | . . . . . . . . Allies Hacked . | . . . . . . . . Hacks Repelled . | . . . . . . . . Allies | -11 -10 -10 -10 -9 -8 -7 -6 -------- Run | Yrd Mat Min Exi Min Mat Fac Fac Total Allies 6 | . . . . 6 . . . Largest Group 1 | . . . . 1 1 . . Highest-Rated Group 31 | . . . . 31 31 . . Highest-Rated Ally 31 | . . . . 31 31 . . Total Orders 2 | . . . . . . . 2 EXPLORE 2 | . . . . . . . 2 Ally Attacks 7 | . . . . 4 3 . . Total Damage 85 | . . . . 21 64 . . Kills 1 | . . . . 1 . . . Allies Corrupted . | . . . . . . . . Allies Melted . | . . . . . . . . Field Lobotomies 5 | . . . . 5 . . . Intel | -11 -10 -10 -10 -9 -8 -7 -6 ------- Run | Yrd Mat Min Exi Min Mat Fac Fac Robot Analysis Total . | . . . . . . . . Derelict Logs Recovered 1 | . . . . 1 . . . Drone Launches 2 | . . . . . . . 2 Drone Recoveries 1 | . . . . . . . 1 Exploration | -11 -10 -10 -10 -9 -8 -7 -6 ------------- Run | Yrd Mat Min Exi Min Mat Fac Fac Turns Passed 5193 | 128 900 199 365 350 1648 1287 316 Spaces Moved 2873 | 58 458 87 226 185 610 968 281 Core 683 | 4 . . . . 38 466 175 Treads 1460 | 54 458 87 226 185 446 3 1 Legs 18 | . . . . . . 18 . Wheels 3 | . . . . . . 3 . Hover 707 | . . . . . 124 478 105 Flight 2 | . . . . . 2 . . Fastest Speed 50 | 50 160 160 160 160 50 50 50 Average Speed 119 | 152 160 160 160 160 142 72 92 Slowest Speed 360 | 160 160 160 160 160 360 160 175 Overloaded Moves . | . . . . . . . . Propulsion Burnouts . | . . . . . . . . Robots Hopped 1 | . . . . . 1 . . Cave-ins Triggered . | . . . . . . . . Exploration Rate (%) 37 | 4 75 18 62 44 57 23 15 Regions Visited 7 Branch Regions 3 Pre-discovered Areas . | . . . . . . . . Known Exits Taken 1 | . 1 . . . . . . Unknown Exits Taken 6 | 1 . 1 1 1 1 1 . Scrap Searched 1 | . . . . 1 . . . Spaces Dug 20 | . . . . . 3 8 9 Terrain Destroyed 80 | . 21 10 . . 8 32 9 Melee 17 | . . . . . . 8 9 Projectile 3 | . . . . . 3 . . AOE 60 | . 21 10 . . 5 24 . Terrain Rammed . | . . . . . . . . Walls Destroyed . | . . . . . . . . Machines Disabled . | . . . . . . . . Actions | -11 -10 -10 -10 -9 -8 -7 -6 --------- Run | Yrd Mat Min Exi Min Mat Fac Fac Total 4224 | 80 567 136 230 217 1196 1481 317 Wait 895 | 2 15 33 . 15 384 438 8 Move 2864 | 57 457 86 225 184 607 967 281 Hop 1 | . . . . . 1 . . Pick Up 53 | 6 20 1 1 2 17 5 1 Fast Attach 36 | 7 . . 1 1 9 11 7 Attach 24 | . . 2 1 1 12 5 3 Detach 9 | . . 1 1 . 2 2 3 Swap 24 | . 5 . . . 18 1 . Drop 56 | . 14 1 1 1 32 5 2 Fire 222 | 8 56 11 . 13 112 22 . Melee 35 | . . . . . . 25 10 Ram 3 | . . . . . 1 . 2 Kick . | . . . . . . . . Crush 2 | . . 1 . . 1 . . Escape Stasis . | . . . . . . . . Rewire . | . . . . . . . . Trap . | . . . . . . . . Miscellaneous . | . . . . . . . . Route ------- -11/Scrapyard -10/Materials (discovered 4 exits: [*Mat x3] / *Min) -10/Mines -10/Exiles (discovered 2 exits: [*Min x2]) -9/Mines -8/Materials (discovered 2 exits: *Fac / *Sto) -7/Factory (discovered 4 exits: [*Fac x2] / Low x2) -6/Factory History --------- Turn | Location | Event 68 | -11/Scrapyard | Discovered new exit (range 15) 129 | -11/Scrapyard | Entered Materials 265 | -10/Materials | Identified exit to Mines 302 | -10/Materials | Build established: Mutant 460 | -10/Materials | Discovered new exit (range 8) 683 | -10/Materials | Discovered new exit (range 12) 863 | -10/Materials | Discovered new exit (range 11) 1029 | -10/Materials | Entered Mines 1054 | -10/Mines | Core integrity fell below 50% 1221 | -10/Mines | Deemed a non-threat by the Exiles lab entrance 1221 | -10/Mines | Discovered new exit (range 5) 1228 | -10/Mines | Entered Exiles 1252 | -10/Exiles | Discovered new exit (range 15) 1268 | -10/Exiles | Met 8R-AWN 1294 | -10/Exiles | Met EX-HEX 1348 | -10/Exiles | Met EX-BIN 1377 | -10/Exiles | Aligned with FarCom system 1379 | -10/Exiles | Given EX-Vault access code 1419 | -10/Exiles | Opened EX-Vault 1429 | -10/Exiles | Found Field Lobotomy Kit 1464 | -10/Exiles | Warned to stay clear of 0b10 Research branches 1521 | -10/Exiles | Met EX-DEC 1577 | -10/Exiles | Discovered new exit (range 12) 1593 | -10/Exiles | Left Exiles lab with Field Lobotomy Kit 1593 | -10/Exiles | Entered Mines 1612 | -9/Mines | Met a Derelict bent on vengeance 1763 | -9/Mines | Learned Materials emergency access door positions 1781 | -9/Mines | Assimilated S-10 Pest with FLK Orb 1785 | -9/Mines | Assimilated S-10 Pest with FLK Orb 1789 | -9/Mines | Assimilated S-10 Pest with FLK Orb 1793 | -9/Mines | Assimilated S-10 Pest with FLK Orb 1803 | -9/Mines | Assimilated S-10 Pest with FLK Orb 1834 | -9/Mines | Lost 5 allies 1909 | -9/Mines | Discovered new exit (range 4) 1917 | -9/Mines | Received a Mining Laser from a helpful Derelict 1943 | -9/Mines | Entered Materials 1943 | -8/Materials | Accompanied by 1 ally 1943 | -8/Materials | Evolved 4 slots: Propulsion x2, Utility x2 2508 | -8/Materials | Build established: Scavenger-Mutant 3465 | -8/Materials | Identified exit to Storage 3490 | -8/Materials | Lost 5 parts (1p2n2u) 3535 | -8/Materials | Core integrity fell below 50% 3588 | -8/Materials | Discovered new exit (range 4) 3591 | -8/Materials | Entered Factory 3591 | -7/Factory | Evolved 2 slots: Utility x2 3701 | -7/Factory | Identified exit to Lower Caves 3804 | -7/Factory | Discovered new exit (range 13) 4096 | -7/Factory | Discovered new exit (range 13) 4109 | -7/Factory | Build established: Mutant 4854 | -7/Factory | Fabricated Imp. Flight Unit? 4878 | -7/Factory | Entered another Factory area 4878 | -6/Factory | Evolved 2 slots: Propulsion x1, Utility x1 5067 | -6/Factory | Lost 7 parts (1p5n1u) 5073 | -6/Factory | Core integrity fell below 50% 5192 | -6/Factory | Core integrity fell below 20% 5194 | -6/Factory | Destroyed by H-66 Slayer with Heavy Assault Rifle Last Messages --------------- 05068_ U-05 Engineer builds a Wall. 05070_ Critical hit (Burn: +37). 05073_ U-05 Engineer destroyed. 05073_ Acquired 20 matter. 05077_ Slug penetrates Wall. 05078_ Adv. Targeting Computer destroyed. 05080_ R-10 Processor collects Welding Torch. 05109_ Acquired Imp. Shield Generator. 05110_ Dropped Power Maul. 05114_ Acquired Adv. Terrain Scanner. 05146_ O-16 Technician: "IFF HANDSHAKE FAILED. SECURING TERMINAL." 05151_ ALERT: Hostiles spotted, dispatching reinforcements to Terminal F008. 05173_ Drone sends a signal. 05186_ Adv. Terrain Scanner destroyed. 05186_ Power Maul destroyed. 05192_ Penetrated by Slug. 05193_ Adv. Weight Redist. System destroyed. 05193_ Slammed into H-66 Slayer. 05194_ Penetrated by Slug. Map ----- +----------------------------------------------------+ | ?????????????????????????????????????????????????? | | ?????????????????????????????????????????????????? | | ?#??????????#????????????????????????????????????? | | ?????????????????#???????????????????????????????? | | ##########???????????????????????????????????????? | | #######??????? ?????????????????????????? | | # #????? ???????????????????????????? | | # #?????????????????????????????????? | | # #?????????????????????????????????? | | " """ !# #?????????????????????????????????? | | " """ # #?????????????????????????????????? | | " """ # ! #?#?#??????#??????????????????????? | | # #?????????#???????????????????????? | | " """ # #???????#?????????????????????????? | | " """ # #?????????????????????????????????? | | " """ !# #########?????????????????????????? | | # ## #??????????? ?????????????? | | +####+###" ## "" #????????? ???????????????? | | ##+####"#] T" #?????????????????????????? | | # "" #?????????????????????????? | | + ! ##?????????? ?????????????? | | # #?????????????????????????? | | ####+###?????????????????????????? | | h ## #?????????????????????????? | | ############??????????????? | | h@h o k??????? | | ############# Y ############??????????????? | | ????????????###### #?????????????????????????? | | ?????????????????### ###?????????????????????????? | | ?" ?? ????????????# #???????????????????????????? | | ?????????? ?########"#####???????????????????????? | | "??????F?? ?# #???????????????????????? | | ???? ??"????# #???????????????????????? | | ###+###?????# #???????????????????????? | | ####### #???????????????????????? | | + #???????????????????????? | | ####### #???????????????????????? | | #######?????# #???????????????????????? | | ????????????# g #???????????????????????? | | ??? ????????# #???????????????????????? | | ???? ??????# gg #???????????????????????? | | ???????????# g #???????????????????????? | | ??????????# #????####???????????????? | | ??????????#######/###########T ####????????????? | | "" ?????????????# #????????????? | | "" ?????????????# #????????????? | | "" "????????????# #????????????? | | "" "????????????# #????????????? | | ??? ???????????# #????????????? | | ??? ???????????############### #????????????? | +----------------------------------------------------+ Best States ------------- Heat Dissipation 45 Energy Generation 14 Energy Capacity 250 Matter Stores 300 Matter Capacity 300 Sight Range 18 Robot Scan Range 14 Terrain Scan Range 20 Terrain Scan Density 10 ECM Strength 1 Additional Mass Support 9 Armor Coverage 225 Core Shielding 20 Evasion (%) 57 Targeting Accuracy 14 Core Analysis 6 Recoil Reduction 4 Offensive Hacking 10 Item Schematics ----------------- Imp. Flight Unit | -8/Materials | Scanalyzed Adv. Beam Rifle | -8/Materials | Scanalyzed Shield Generator | -7/Factory | Scanalyzed Robot Schematics ------------------ None Fabricated ------------ Imp. Flight Unit | x1 | -7/Factory Alien Tech Used ----------------- None Achievements -------------- None Challenges ------------ None Game ------ Seed SubatomicLongswordClaymores Manual? 0 Play Time 01:14:12 Cumulative 21.1 hours Start 2024.09.26 @ 17:32:23 End 2024.09.26 @ 18:48:54 Sessions 1 Manual Loads 0 Difficulty Rogue Special Mode None Game No. 29 Rogue 29 Adventurer 0 Explorer 0 Win Type - Total 0 Types 0/0/0/0/0/0/0/0/0 Lore% 12 Gallery% 25 Achievement% 24 Wizard Run 0 Options --------- Layout 0 ASCII 0 Keyboard 1 Movement Numpad Keybinds 0 Fullscreen 1 Font 18/X11 Map View 76x50 Zoom Use 0% Tactical HUD 1 Map Filters NONE Filters NONE Steam 1 RUN: c7fba1d1-c6ca-4fdc-a0bd-e122c45aed68